[Event "Polish Youth Ekstraliga 2022"]
[Site "Lublin"]
[Date "2022.06.30"]
[Round "6.26"]
[White "Koziorowicz, Michal"]
[Black "Dalkowski, Rafal"]
[Result "0-1"]
[ECO "B12"]
[WhiteElo "2231"]
[BlackElo "2028"]
[Annotator "TA"]
[PlyCount "64"]
[EventDate "2022.06.24"]
[EventType "team-tourn"]
[EventCountry "POL"]
[SourceTitle "playchess.com"]
[Source "ChessBase"]
[SourceQuality "1"]
[TimeControl "40/5400+30:1800+30"]

{[%evp 15,64,0,0,0,0,0,0,0,0,-2,0,0,3,-10,32,9,94,65,86,50,93,93,80,-187,-207,-201,-212,-691,-691,-679,-679,-673,-666,-741,-707,-693,-683,-668,-649,-725,-718,-729,-676,-719,-713,-811,-790,-819,-819,-1896,-1613]} 1. e4 {[%emt 0:00:07]} c6 {[%emt 0:00:04]} 2. d4 {[%emt 0:01:11]} d5 {[%emt 0:00:07]} 3. e5 {[%emt 0:00:07]} Bf5 {[%emt 0:00:07][%cal Bc8f5,Bf5g6,Bg6h7][%mdl 32]} 4. Nc3 {[%emt 0:00:15]} e6 {[%emt 0:00:06]} 5. g4 {[%emt 0:00:06]} Bg6 {[%emt 0:00:04]} 6. Nge2 {[%emt 0:00:06]} c5 {[%emt 0:00:09]} 7. h4 {[%emt 0:00:04]} h5 {[%emt 0:00:12]} 8. Nf4 {[%emt 0:00:05]} Bh7 {[%emt 0:00:10]} 9. g5 {[%emt 0:00:03] B12: Caro-Kann: Advance Variation.} (9. gxh5 Nc6 10. Be3 cxd4 11. Bxd4 Nge7 $17) 9... cxd4 {[%emt 0:00:30]} 10. Nb5 {[%emt 0:00:13]} Be4 {[%emt 0:02:00]} 11. f3 {[%emt 0:00:11] The position is equal.} Bf5 {[%emt 0:00:23]} 12. Nxd4 {[%emt 0:00:07]} Ne7 {[%emt 0:01:04]} 13. Nxf5 {[%emt 0:00:08]} Nxf5 {[%emt 0:00:11]} 14. Bd3 {[%emt 0:00:06] aiming for Bxf5.} Qc7 {[%emt 0:03:07]} (14... g6 $5 {[%cal Rd8c7]}) 15. Ne2 $1 {[%emt 0:01:09] [#] Against Ng3} ({Much worse is} 15. Bxf5 Qxe5+ 16. Be4 (16. Qe2 Qxf5 17. Qd3 Qxd3 $17) 16... Nc6 $15) 15... Bc5 $146 {[%emt 0:13:46]} (15... Nc6 $11) ({Predecessor:} 15... g6 16. Bxf5 gxf5 17. f4 Nd7 18. Be3 Nc5 19. Ng3 Na4 20. Qe2 Rc8 21. Nxh5 Qa5+ {½-½ (27) Doderer,H (2383)-Tiemann,H (2347) GER email 2020}) 16. Bxf5 $16 {[%emt 0:03:09]} exf5 {[%emt 0:00:06]} 17. Qxd5 {[%emt 0:03:41][%cal Og5g6]} Nd7 {[%emt 0:11:49]} 18. e6 {[%emt 0:02:56]} O-O-O {[%emt 0:01:41] [#] Strongly threatening ...Ne5.} 19. exd7+ {[%emt 0:23:51][%mdl 8192] White does not recover from this.} (19. exf7 $16 {stays on course. Threatens to win with Bf4.} Ne5 20. Qe6+ Qd7 21. Qxd7+ Rxd7 22. Bf4 Nxf7 23. Rd1) 19... Rxd7 $19 {[%emt 0:00:20]} 20. Qxf5 {[%emt 0:00:08] Black must now prevent Bf4.} Re8 {[%emt 0:02:10] ( -> ...Qg3+)} 21. Bd2 $2 {[%emt 0:04:46] [#]} (21. Bf4 Qa5+ 22. Kf1 Rxe2 23. Rh2 (23. Kxe2 $2 {perishes.} Qb5+ 24. Qd3 Rxd3 $19)) 21... Qg3+ $1 {[%emt 0:10:34] Black is clearly winning.} 22. Kd1 {[%emt 0:01:43]} Qf2 {[%emt 0:01:38]} 23. Re1 {[%emt 0:11:43]} Be3 {[%emt 0:04:09] Hoping for ...Re6.} 24. Qd3 {[%emt 0:13:44]} Red8 {[%emt 0:13:45]} 25. Bxe3 {[%emt 0:01:05]} Rxd3+ {[%emt 0:01:30]} 26. cxd3 {[%emt 0:00:06]} Qxe3 {[%emt 0:00:07]} 27. Nc1 {[%emt 0:08:28]} Qxf3+ {[%emt 0:00:27]} 28. Re2 {[%emt 0:00:52]} Qg4 {[%emt 0:00:52]} 29. Kc2 {[%emt 0:00:34]} Qxh4 {[%emt 0:01:44]} 30. Nb3 {[%emt 0:00:07]} Qxg5 {[%emt 0:00:09]} 31. Rf1 {[%emt 0:01:06]} h4 {[%emt 0:01:44]} 32. Rxf7 {[%emt 0:03:56]} Qd5 {[%emt 0:00:27][%csl LRd3,LRf7] Weighted Error Value: White=0.64/Black=0.12 (very precise)} 0-1

[Event "Polish Youth Ekstraliga 2022"]
[Site "Lublin"]
[Date "2022.06.30"]
[Round "6.27"]
[White "Mulawa, Cyprian"]
[Black "Raczek, Krzysztof"]
[Result "1/2-1/2"]
[ECO "B10"]
[WhiteElo "2050"]
[BlackElo "2114"]
[Annotator "RC"]
[PlyCount "113"]
[EventDate "2022.06.24"]
[EventType "team-tourn"]
[EventCountry "POL"]
[SourceTitle "playchess.com"]
[Source "ChessBase"]
[SourceQuality "1"]
[TimeControl "40/5400+30:1800+30"]

1. e4 {[%emt 0:00:44]} c6 {[%emt 0:00:07]} 2. Nf3 {[%emt 0:00:20]} d5 {[%emt 0:00:01]} 3. d3 {[%emt 0:00:18]} g6 {[%emt 0:10:55]} 4. Nbd2 {[%emt 0:01:15]} Bg7 {[%emt 0:00:17]} 5. g3 {[%emt 0:00:56]} Bg4 {[%emt 0:00:43]} 6. h3 Bxf3 {[%emt 0:02:43]} 7. Qxf3 {[%emt 0:09:05]} Nd7 {[%emt 0:00:44]} 8. Bg2 {[%emt 0:02:51]} e6 {[%emt 0:00:28]} 9. O-O {[%emt 0:00:37]} Ne7 {[%emt 0:00:26]} 10. Qe2 {[%emt 0:05:56]} dxe4 {[%emt 0:12:24]} 11. dxe4 {[%emt 0:04:28]} Qc7 {[%emt 0:02:13]} 12. a4 {[%emt 0:05:24]} e5 {[%emt 0:02:47]} 13. Nc4 {[%emt 0:01:38]} Nb6 {[%emt 0:00:32]} 14. Be3 {[%emt 0:07:17]} O-O 15. a5 {[%emt 0:01:22]} Nxc4 {[%emt 0:01:57]} 16. Qxc4 {[%emt 0:00:02]} Rfd8 {[%emt 0:01:13]} 17. b4 {[%emt 0:01:50]} Nc8 {[%emt 0:01:02]} 18. Rfd1 {[%emt 0:12:35]} Nd6 {[%emt 0:00:42]} 19. Qb3 {[%emt 0:00:32]} Bf8 {[%emt 0:12:27]} 20. Rd2 {[%emt 0:13:50]} Be7 {[%emt 0:06:36]} 21. Rad1 {[%emt 0:01:48]} Ne8 {[%emt 0:04:51]} 22. Rxd8 {[%emt 0:01:30]} Bxd8 {[%emt 0:00:01]} 23. h4 {[%emt 0:01:39]} Nf6 {[%emt 0:03:18]} 24. Bg5 {[%emt 0:09:57]} Be7 {[%emt 0:00:30]} 25. Qf3 {[%emt 0:01:33]} Rd8 {[%emt 0:06:33]} 26. Rxd8+ {[%emt 0:01:20]} Qxd8 {[%emt 0:00:06]} 27. Bf1 {[%emt 0:00:05]} Ne8 {[%emt 0:00:42]} 28. Bc4 {[%emt 0:03:45]} Nd6 {[%emt 0:00:01]} 29. Bxe7 {[%emt 0:00:26]} Qxe7 {[%emt 0:00:03]} 30. Bb3 {[%emt 0:00:09]} Kg7 {[%emt 0:03:13]} 31. c3 {[%emt 0:00:46]} h5 32. Qe3 {[%emt 0:02:25]} Nc8 {[%emt 0:07:49]} 33. Kg2 {[%emt 0:00:39]} b6 {[%emt 0:01:15]} 34. axb6 {[%emt 0:00:35]} axb6 {[%emt 0:00:02]} 35. Kh2 {[%emt 0:04:04]} c5 {[%emt 0:03:02]} 36. bxc5 {[%emt 0:00:47]} Qxc5 {[%emt 0:00:15]} 37. Qf3 {[%emt 0:00:18]} Nd6 {[%emt 0:00:20]} 38. Bd5 {[%emt 0:00:51]} Qc7 {[%emt 0:08:29]} 39. Kg2 {[%emt 0:02:30]} Nb5 {[%emt 0:00:29]} 40. c4 {[%emt 0:00:00]} Nd6 {[%emt 0:00:00]} 41. Qc3 Ne8 {[%emt 0:03:35]} 42. Qa1 {[%emt 0:06:48]} Nf6 {[%emt 0:01:27]} 43. Qa4 {[%emt 0:05:07]} Nh7 {[%emt 0:02:42]} 44. Qa8 {[%emt 0:02:58]} Qd6 {[%emt 0:00:51]} 45. Qb7 {[%emt 0:00:36]} Qf6 {[%emt 0:00:23]} 46. Qa7 {[%emt 0:10:35]} g5 {[%emt 0:01:41]} 47. hxg5 {[%emt 0:00:08]} Nxg5 {[%emt 0:00:02]} 48. Qa3 {[%emt 0:00:02]} Nh7 {[%emt 0:00:44]} 49. Qc3 {[%emt 0:03:09]} Nf8 {[%emt 0:00:57]} 50. c5 {[%emt 0:00:09]} bxc5 {[%emt 0:00:35]} 51. Qxc5 {[%emt 0:00:02]} h4 {[%emt 0:00:16]} 52. Qc8 {[%emt 0:00:54]} Qg5 {[%emt 0:01:30]} 53. Qc7 {[%emt 0:02:16]} Qh5 {[%emt 0:01:28]} 54. gxh4 {[%emt 0:01:43]} Nh7 {[%emt 0:02:43]} 55. Qxf7+ {[%emt 0:00:33]} Qxf7 {[%emt 0:00:24]} 56. Bxf7 {[%emt 0:00:02]} Kxf7 {[%emt 0:00:14]} 57. f4 {[%emt 0:00:01]} 1/2-1/2

[Event "Polish Youth Ekstraliga 2022"]
[Site "Lublin"]
[Date "2022.06.30"]
[Round "6.28"]
[White "Grzebieniowski, Michal"]
[Black "Suska, Szymon"]
[Result "1/2-1/2"]
[ECO "E16"]
[WhiteElo "1635"]
[BlackElo "1604"]
[Annotator "NA RC"]
[PlyCount "118"]
[EventDate "2022.06.24"]
[EventType "team-tourn"]
[EventCountry "POL"]
[SourceTitle "playchess.com"]
[Source "ChessBase"]
[SourceQuality "1"]
[TimeControl "40/5400+30:1800+30"]

1. d4 {[%emt 0:00:02]} Nf6 {[%emt 0:00:09]} 2. c4 {[%emt 0:00:04]} e6 {[%emt 0:00:11]} 3. Nf3 {[%emt 0:00:04]} b6 {[%emt 0:00:11]} 4. g3 {[%emt 0:00:06]} Bb7 {[%emt 0:00:05]} 5. Bg2 {[%emt 0:00:05]} Bb4+ {[%emt 0:00:09]} 6. Bd2 {[%emt 0:00:23]} Qe7 {[%emt 0:00:26]} 7. O-O {[%emt 0:00:54]} O-O {[%emt 0:00:07]} 8. Nc3 {[%emt 0:00:43]} d6 {[%emt 0:00:20]} 9. Re1 {[%emt 0:02:30]} Nbd7 {[%emt 0:00:43]} 10. Qc2 {[%emt 0:03:19]} Rfe8 {[%emt 0:03:41]} 11. a3 {[%emt 0:01:53]} Bxc3 {[%emt 0:00:06]} 12. Bxc3 {[%emt 0:00:03]} Rab8 {[%emt 0:09:56]} 13. e4 {[%emt 0:08:35]} e5 {[%emt 0:03:30]} 14. d5 {[%emt 0:00:29]} a5 {[%emt 0:02:05]} 15. Nd2 {[%emt 0:01:07]} Nh5 {[%emt 0:11:06]} 16. Rf1 {[%emt 0:04:54]} Ra8 {[%emt 0:24:57]} 17. b3 {[%emt 0:00:54]} Rf8 {[%emt 0:02:36]} 18. Qd3 {[%emt 0:13:56]} Rae8 {[%emt 0:06:04]} 19. f4 {[%emt 0:03:28]} exf4 {[%emt 0:10:45]} 20. gxf4 {[%emt 0:00:10]} f5 {[%emt 0:01:57]} 21. Rae1 {[%emt 0:05:37]} Qh4 {[%emt 0:02:37]} 22. Qh3 {[%emt 0:05:40]} Qxh3 {[%emt 0:01:35]} 23. Bxh3 {[%emt 0:00:14]} Nc5 {[%emt 0:00:26]} 24. Bxf5 {[%emt 0:05:18]} g6 {[%emt 0:00:47]} 25. Bg4 {[%emt 0:00:54]} Nxf4 {[%emt 0:01:31]} 26. Re3 {[%emt 0:02:52]} h5 {[%emt 0:00:58]} 27. Bd1 {[%emt 0:00:12]} Bc8 {[%emt 0:01:00]} 28. Bc2 {[%emt 0:02:26]} Bg4 {[%emt 0:01:26]} 29. Bb2 {[%emt 0:02:58]} Nd7 {[%emt 0:03:22]} 30. h4 {[%emt 0:01:13]} Ne5 {[%emt 0:01:09]} 31. Kh1 {[%emt 0:06:54]} Nh3 {[%emt 0:01:46]} 32. Ree1 {[%emt 0:00:59]} g5 {[%emt 0:00:37]} 33. hxg5 {[%emt 0:01:01]} Nxg5 {[%emt 0:00:06]} 34. Rxf8+ {[%emt 0:00:15]} Rxf8 {[%emt 0:00:02]} 35. Bxe5 {[%emt 0:07:29]} dxe5 {[%emt 0:00:01]} 36. Kg2 {[%emt 0:00:12]} Nh3 {[%emt 0:02:03]} 37. Rf1 {[%emt 0:00:28]} Nf4+ {[%emt 0:00:52]} 38. Kg3 {[%emt 0:01:02]} Ne2+ {[%emt 0:00:22]} 39. Kg2 {[%emt 0:00:27]} Rxf1 {[%emt 0:02:22]} 40. Kxf1 {[%emt 0:00:00]} Nf4 {[%emt 0:00:00]} 41. Kf2 {[%emt 0:01:03]} Kf7 {[%emt 0:02:44]} 42. b4 {[%emt 0:02:12]} axb4 {[%emt 0:00:04]} 43. axb4 {[%emt 0:00:01]} Ke7 {[%emt 0:02:26]} 44. c5 {[%emt 0:01:04]} bxc5 {[%emt 0:00:06]} 45. bxc5 {[%emt 0:00:02]} Ng6 {[%emt 0:00:47]} 46. Kg3 {[%emt 0:00:44]} Be2 {[%emt 0:01:10]} 47. Bb3 {[%emt 0:02:20]} Bg4 {[%emt 0:02:53]} 48. Bc4 {[%emt 0:01:13]} Bd7 {[%emt 0:02:38]} 49. Be2 {[%emt 0:00:59]} h4+ {[%emt 0:00:05]} 50. Kh2 {[%emt 0:00:06]} Nf4 {[%emt 0:01:10]} 51. Bf1 {[%emt 0:00:21]} Bg4 {[%emt 0:02:02]} 52. Nc4 {[%emt 0:00:39]} Be2 {[%emt 0:07:17]} 53. Bxe2 {[%emt 0:00:53]} Nxe2 {[%emt 0:00:03]} 54. Nxe5 {[%emt 0:00:09]} Nc3 {[%emt 0:00:03]} 55. Ng6+ {[%emt 0:00:18]} Kd8 {[%emt 0:01:11]} 56. Nxh4 {[%emt 0:01:50]} Nxe4 {[%emt 0:00:07]} 57. Kg2 {[%emt 0:00:07]} Nf6 {[%emt 0:00:06]} 58. Kf3 {[%emt 0:00:19]} Nxd5 {[%emt 0:00:08]} 59. Ke4 {[%emt 0:00:25]} Ne7 {[%emt 0:00:05]} 1/2-1/2

[Event "Polish Youth Ekstraliga 2022"]
[Site "Lublin"]
[Date "2022.06.30"]
[Round "6.29"]
[White "Rejniak, Zuzanna"]
[Black "Siekanska, Maria"]
[Result "1/2-1/2"]
[ECO "B40"]
[WhiteElo "1804"]
[BlackElo "1964"]
[Annotator "RC"]
[PlyCount "91"]
[EventDate "2022.06.24"]
[EventType "team-tourn"]
[EventCountry "POL"]
[SourceTitle "playchess.com"]
[Source "ChessBase"]
[SourceQuality "1"]
[TimeControl "40/5400+30:1800+30"]

1. e4 {[%emt 0:01:50]} c5 {[%emt 0:00:05]} 2. Nf3 {[%emt 0:00:40]} e6 {[%emt 0:00:09]} 3. c3 {[%emt 0:00:09]} Nf6 {[%emt 0:00:14]} 4. e5 {[%emt 0:00:05]} Nd5 {[%emt 0:00:06]} 5. d4 {[%emt 0:00:08]} cxd4 {[%emt 0:00:06]} 6. cxd4 {[%emt 0:00:07]} d6 {[%emt 0:00:08]} 7. Bc4 {[%emt 0:00:13]} Nc6 {[%emt 0:01:53]} 8. O-O {[%emt 0:02:04]} Be7 {[%emt 0:01:39]} 9. Bd2 {[%emt 0:07:28]} O-O {[%emt 0:03:53]} 10. Nc3 {[%emt 0:01:33]} Nxc3 {[%emt 0:04:22]} 11. Bxc3 {[%emt 0:00:16]} Qc7 {[%emt 0:00:39]} 12. Rc1 {[%emt 0:11:12]} dxe5 {[%emt 0:06:41]} 13. dxe5 {[%emt 0:02:16]} b6 {[%emt 0:04:14]} 14. Bd3 {[%emt 0:04:13]} Bb7 {[%emt 0:03:51]} 15. Qe2 {[%emt 0:01:55]} Rac8 {[%emt 0:02:29]} 16. Qe4 {[%emt 0:08:05]} g6 {[%emt 0:00:17]} 17. Qe3 {[%emt 0:03:10]} Rfd8 {[%emt 0:02:29]} 18. Bb1 {[%emt 0:09:32]} Rd7 {[%emt 0:16:54]} 19. Ng5 {[%emt 0:08:27]} Rcd8 {[%emt 0:03:40]} 20. Qf4 {[%emt 0:05:46]} Bxg5 {[%emt 0:00:34]} 21. Qxg5 {[%emt 0:00:05]} b5 {[%emt 0:03:11]} 22. Be4 {[%emt 0:17:21]} Rc8 {[%emt 0:18:27]} 23. Bxc6 {[%emt 0:03:21]} Bxc6 {[%emt 0:00:30]} 24. Bb4 {[%emt 0:01:11]} Qd8 {[%emt 0:04:34]} 25. Qxd8+ {[%emt 0:00:51]} Rdxd8 {[%emt 0:00:03]} 26. Bd6 {[%emt 0:01:15]} Bb7 {[%emt 0:01:46]} 27. f3 {[%emt 0:02:39]} h6 {[%emt 0:04:32]} 28. Rfd1 {[%emt 0:02:20]} g5 {[%emt 0:00:42]} 29. Kf2 {[%emt 0:04:17]} Kg7 {[%emt 0:02:06]} 30. g4 {[%emt 0:00:37]} Kg6 {[%emt 0:00:59]} 31. Be7 {[%emt 0:01:48]} Rxd1 {[%emt 0:00:36]} 32. Rxd1 {[%emt 0:00:03]} Bd5 {[%emt 0:00:24]} 33. Bb4 {[%emt 0:01:20]} Bxa2 {[%emt 0:00:57]} 34. Bc3 {[%emt 0:00:19]} Bd5 {[%emt 0:01:27]} 35. Kg3 {[%emt 0:00:40]} h5 {[%emt 0:03:05]} 36. gxh5+ {[%emt 0:00:05]} Kxh5 {[%emt 0:00:08]} 37. Rd4 {[%emt 0:00:51]} a5 {[%emt 0:05:35]} 38. Bxa5 {[%emt 0:00:34]} Rc1 {[%emt 0:00:10]} 39. Rd2 {[%emt 0:00:35]} Rc4 {[%emt 0:00:35]} 40. Bc3 {[%emt 0:00:00]} Rf4 {[%emt 0:00:00]} 41. Rd3 {[%emt 0:03:50]} b4 {[%emt 0:09:21]} 42. Bd2 {[%emt 0:00:23]} Rh4 {[%emt 0:03:42]} 43. h3 {[%emt 0:03:32]} Rc4 {[%emt 0:00:39]} 44. b3 {[%emt 0:00:59]} Rc2 {[%emt 0:01:41]} 45. Bxb4 {[%emt 0:02:19]} Rb2 {[%emt 0:01:05]} 46. Ba3 {[%emt 0:01:38]} 1/2-1/2

[Event "Polish Youth Ekstraliga 2022"]
[Site "Lublin"]
[Date "2022.06.30"]
[Round "6.30"]
[White "Ziobrowska, Maja"]
[Black "Walewska, Natalia"]
[Result "1-0"]
[ECO "C54"]
[WhiteElo "1609"]
[BlackElo "1179"]
[Annotator "NA RC"]
[PlyCount "125"]
[EventDate "2022.06.24"]
[EventType "team-tourn"]
[EventCountry "POL"]
[SourceTitle "playchess.com"]
[Source "ChessBase"]
[SourceQuality "1"]
[TimeControl "40/5400+30:1800+30"]

1. e4 {[%emt 0:00:04]} e5 {[%emt 0:00:02]} 2. Nf3 {[%emt 0:00:07]} Nc6 {[%emt 0:00:07]} 3. Bc4 {[%emt 0:00:05]} Bc5 {[%emt 0:00:07]} 4. c3 {[%emt 0:00:10]} Nf6 {[%emt 0:00:06]} 5. d3 {[%emt 0:00:06]} d6 {[%emt 0:00:07]} 6. O-O {[%emt 0:00:16]} O-O {[%emt 0:00:10]} 7. Nbd2 {[%emt 0:00:45]} a6 {[%emt 0:00:34]} 8. Bb3 {[%emt 0:00:07]} Ba7 {[%emt 0:00:11]} 9. h3 {[%emt 0:00:20]} h6 {[%emt 0:00:11]} 10. Re1 {[%emt 0:00:04]} Nh5 {[%emt 0:01:04]} 11. Nf1 {[%emt 0:01:58]} Qf6 {[%emt 0:01:08]} 12. N1h2 {[%emt 0:29:00]} Nf4 {[%emt 0:03:23]} 13. Bxf4 {[%emt 0:04:45]} Qxf4 {[%emt 0:02:40]} 14. Qd2 {[%emt 0:06:24]} Qf6 {[%emt 0:01:34]} 15. Rad1 {[%emt 0:04:37]} Qg6 {[%emt 0:09:05]} 16. Kh1 {[%emt 0:08:47]} Bd7 {[%emt 0:16:57]} 17. d4 {[%emt 0:01:40]} Rad8 {[%emt 0:01:01]} 18. Bd5 {[%emt 0:11:42]} exd4 {[%emt 0:17:21]} 19. cxd4 {[%emt 0:01:48]} Be6 {[%emt 0:04:43]} 20. Rc1 {[%emt 0:09:39]} Bd7 {[%emt 0:09:52]} 21. Bb3 {[%emt 0:05:20]} Bb6 {[%emt 0:01:31]} 22. Qd3 {[%emt 0:02:52]} Rfe8 {[%emt 0:04:42]} 23. Nf1 {[%emt 0:01:33]} Qf6 {[%emt 0:03:59]} 24. Rcd1 {[%emt 0:01:54]} Na5 {[%emt 0:05:20]} 25. Ng3 {[%emt 0:01:18]} Nxb3 {[%emt 0:01:12]} 26. Nh5 {[%emt 0:02:02]} Qg6 {[%emt 0:04:03]} 27. Nf4 {[%emt 0:00:09]} Qh7 {[%emt 0:03:34]} 28. axb3 {[%emt 0:00:47]} Bc6 {[%emt 0:01:31]} 29. d5 {[%emt 0:01:59]} Bb5 {[%emt 0:00:36]} 30. Qc2 {[%emt 0:00:26]} Ba5 {[%emt 0:01:31]} 31. Re3 {[%emt 0:00:19]} Bb6 {[%emt 0:00:16]} 32. Nd4 {[%emt 0:00:27]} Bd7 {[%emt 0:01:47]} 33. Nh5 {[%emt 0:02:11]} Kh8 {[%emt 0:02:03]} 34. Qc3 {[%emt 0:01:34]} Bxd4 {[%emt 0:02:11]} 35. Qxd4 {[%emt 0:00:44]} Rg8 {[%emt 0:02:06]} 36. Rg3 {[%emt 0:00:33]} Rdf8 {[%emt 0:00:51]} 37. Rdd3 {[%emt 0:00:49]} f6 {[%emt 0:00:19]} 38. f4 {[%emt 0:00:19]} Be8 {[%emt 0:00:15]} 39. Nxf6 {[%emt 0:01:10]} gxf6 {[%emt 0:00:12]} 40. e5 {[%emt 0:00:00]} fxe5 {[%emt 0:00:00]} 41. fxe5 {[%emt 0:00:28]} Bg6 {[%emt 0:03:22]} 42. e6+ {[%emt 0:06:06]} Qg7 {[%emt 0:01:50]} 43. Rxg6 {[%emt 0:01:29]} Qxd4 {[%emt 0:00:48]} 44. Rxg8+ {[%emt 0:00:06]} Kxg8 {[%emt 0:00:39]} 45. Rxd4 {[%emt 0:00:04]} Rf1+ {[%emt 0:01:24]} 46. Kh2 {[%emt 0:00:07]} Kf8 {[%emt 0:01:28]} 47. Rh4 {[%emt 0:06:29]} Rf6 {[%emt 0:02:30]} 48. Rc4 {[%emt 0:00:46]} Rf5 {[%emt 0:01:05]} 49. Rxc7 {[%emt 0:00:27]} Rxd5 {[%emt 0:00:14]} 50. Rxb7 {[%emt 0:00:05]} Rb5 {[%emt 0:00:27]} 51. Rxb5 {[%emt 0:08:23]} axb5 {[%emt 0:00:08]} 52. Kg3 {[%emt 0:00:03]} Ke7 {[%emt 0:00:26]} 53. Kf4 {[%emt 0:00:05]} Kxe6 {[%emt 0:00:10]} 54. Ke4 {[%emt 0:01:06]} h5 {[%emt 0:01:17]} 55. g4 {[%emt 0:00:33]} h4 {[%emt 0:00:26]} 56. b4 {[%emt 0:00:57]} d5+ {[%emt 0:01:56]} 57. Kd4 {[%emt 0:00:10]} Kd6 {[%emt 0:00:08]} 58. g5 {[%emt 0:02:21]} Ke6 {[%emt 0:00:25]} 59. g6 {[%emt 0:00:41]} Kf6 {[%emt 0:00:14]} 60. Kxd5 {[%emt 0:00:55]} Kxg6 {[%emt 0:00:15]} 61. Kc5 {[%emt 0:00:32]} Kg5 {[%emt 0:00:15]} 62. Kxb5 {[%emt 0:00:06]} Kf4 {[%emt 0:00:35]} 63. Kc5 {[%emt 0:00:33]} 1-0

[Event "Polish Youth Ekstraliga 2022"]
[Site "Lublin"]
[Date "2022.07.01"]
[Round "7.1"]
[White "Dzida, Kamil"]
[Black "Czopor, Maciej"]
[Result "1-0"]
[ECO "A61"]
[WhiteElo "2294"]
[BlackElo "2425"]
[Annotator "TA"]
[PlyCount "101"]
[EventDate "2022.06.24"]
[EventType "team-tourn"]
[EventCountry "POL"]
[SourceTitle "playchess.com"]
[Source "ChessBase"]
[SourceQuality "1"]
[TimeControl "40/5400+30:1800+30"]

{[%evp 19,101,46,52,19,25,29,27,24,38,35,41,-12,32,31,50,0,0,0,0,-38,0,0,0,0,7,-61,-18,-35,-15,-50,-29,-39,-25,-58,0,-188,0,0,0,0,0,0,0,0,0,0,0,-4,79,89,106,75,101,95,102,-56,17,17,968,953,802,847,1257,1239,1141,1101,1716,1532,1285,1112,2130,1601,2480,2226,2103,2004,4133,2077,6311,6191,29987,29988,29988,29989]} 1. d4 {[%emt 0:00:01]} Nf6 {[%emt 0:00:52]} 2. c4 {[%emt 0:00:07]} e6 {[%emt 0:00:44]} 3. Nf3 {[%emt 0:00:06]} c5 {[%emt 0:05:25]} 4. d5 {[%emt 0:01:15]} exd5 {[%emt 0:00:16]} 5. cxd5 {[%emt 0:00:07]} d6 {[%emt 0:00:13]} 6. Nc3 {[%emt 0:00:05]} g6 {[%emt 0:00:04]} 7. Bg5 {[%emt 0:00:07]} Bg7 {[%emt 0:02:43]} 8. e3 {[%emt 0:04:12]} O-O {[%emt 0:00:19]} 9. Nd2 {[%emt 0:00:22]} h6 {[%emt 0:17:20]} 10. Bh4 {[%emt 0:00:08]} Na6 {[%emt 0:00:57]} 11. Nc4 {[%emt 0:02:43] A61: Modern Benoni: Nf3 without early e4.} Nc7 {[%emt 0:03:36]} 12. a4 {[%emt 0:00:30] Inhibits b5.} b6 {[%emt 0:03:48][%cal Bb7b6,Bb6b5,Bb5b4][%mdl 32]} 13. Be2 {[%emt 0:02:11] White has an edge.} Ba6 {[%emt 0:08:57]} 14. O-O {[%emt 0:01:39]} Qd7 {[%emt 0:01:30]} 15. e4 {[%emt 0:09:46]} (15. f3 $14) 15... Bxc4 {[%emt 0:11:45]} 16. Bxc4 {[%emt 0:00:03]} a6 {[%emt 0:01:10]} 17. Re1 {[%emt 0:04:41]} (17. e5 $14 dxe5 18. Bxf6 Bxf6 19. d6) 17... b5 $11 {[%emt 0:01:51] [#]} 18. Bf1 $146 {[%emt 0:00:46] Hoping for e5.} ({Predecessor:} 18. e5 dxe5 19. Bxf6 Bxf6 20. axb5 axb5 21. Rxa8 Rxa8 22. d6 bxc4 23. dxc7 Qxc7 24. Nd5 {½-½ (55) Balashov,Y (2550)-Garcia Palermo,C (2520) Malmo 1987}) 18... Nh5 {[%emt 0:06:15]} 19. Qf3 {[%emt 0:07:04]} Bd4 {[%emt 0:01:56]} (19... b4 $5 {[%cal Rb4c3]} 20. Nd1 Rae8 $15) 20. g4 {[%emt 0:05:02]} Ng7 {[%emt 0:00:23]} 21. Bg3 {[%emt 0:00:21]} b4 {[%emt 0:01:50]} 22. Nd1 {[%emt 0:01:38]} (22. Ne2 $1 $11 Bxb2 23. Rab1) 22... Rae8 {[%emt 0:00:29] Threatens to win with ...f5.} (22... h5 $5 {[%cal Rh5g4]}) 23. Ne3 {[%emt 0:05:22][%cal Bd1e3,Be3c4,Bc4d6][%mdl 32]} Bxb2 {[%emt 0:02:34]} 24. Nc4 {[%emt 0:00:08]} Bxa1 {[%emt 0:01:42]} 25. Rxa1 {[%emt 0:00:03]} f5 {[%emt 0:00:55]} 26. gxf5 {[%emt 0:01:37]} gxf5 {[%emt 0:00:23]} ({Black should try} 26... Rf6 $1 $15 27. Bh4 Qf7 28. Bxf6 Qxf6) 27. Bh3 $2 {[%emt 0:05:27]} (27. Nxd6 $11 {and White is okay.} fxe4 28. Qg2) 27... Qf7 $2 {[%emt 0:00:46]} (27... Qd8 $1 $19 {And now ...f4 would win.} 28. exf5 Qf6) 28. Nxd6 {[%emt 0:14:40]} Qf6 {[%emt 0:00:48]} 29. Re1 {[%emt 0:00:05]} f4 {[%emt 0:02:31]} 30. Nxe8 {[%emt 0:00:04]} Ncxe8 {[%emt 0:00:06]} 31. e5 {[%emt 0:00:04]} Qg5 $36 {[%emt 0:01:20][%mdl 2048] Black has the initiative.} 32. d6 {[%emt 0:00:06]} fxg3 {[%emt 0:00:28]} 33. Qxg3 {[%emt 0:00:07]} c4 {[%emt 0:04:51]} (33... Qd2 $11 {remains equal.} 34. Qb3+ Rf7) 34. Qxg5 $16 {[%emt 0:05:50] White is more active.} hxg5 {[%emt 0:00:01]} 35. Re4 $1 {[%emt 0:00:20]} c3 {[%emt 0:04:27]} 36. Rxb4 {[%emt 0:02:01] Strongly threatening Rc4.} Rf4 {[%emt 0:00:04] Against Rc4} 37. Rb3 {[%emt 0:05:02]} (37. Rb8 $16 c2 38. Rc8) 37... Rc4 {[%emt 0:10:33]} ({Black should play} 37... c2 $1 $15 38. Rc3 Rf3 $3 {[%mdl 512]} 39. Rxc2 Rxh3) 38. Bf1 $11 {[%emt 0:00:21]} Rc5 {[%emt 0:01:30][%mdl 8192] [#] This move loses the game for Black.} ({But not} 38... Rg4+ 39. Kh1 Rd4 40. Rxc3 $16) (38... Rd4 $11) 39. Rxc3 $3 $18 {[%emt 0:00:31][%mdl 576] Promotion} Rxc3 {[%emt 0:01:45]} 40. d7 {[%emt 0:00:00]} Rc5 {[%emt 0:00:00]} 41. d8=Q Rxe5 {[%emt 0:01:11]} 42. Bxa6 {[%emt 0:00:41]} Kf7 {[%emt 0:00:23]} 43. Qd7+ {[%emt 0:00:54]} Kf6 {[%emt 0:00:18]} 44. Bc4 {[%emt 0:00:14][%csl Gc4][%cal Rd7f7]} Re7 {[%emt 0:00:08] Against Qf7+} 45. Qc6+ {[%emt 0:00:37]} Ke5 {[%emt 0:00:09]} 46. a5 {[%emt 0:01:03]} Nf5 {[%emt 0:00:03]} 47. a6 {[%emt 0:01:36]} Kf4 {[%emt 0:00:20]} 48. Be6 {[%emt 0:02:51] Qc4+ would kill now.} Nd4 {[%emt 0:03:41]} 49. Qc4 {[%emt 0:00:05]} Ke4 {[%emt 0:00:05]} 50. Qd5+ {[%emt 0:00:05]} Kd3 {[%emt 0:00:03]} 51. Bf5+ {[%emt 0:00:08] Weighted Error Value: White=0.34/Black=0.28 (precise)} 1-0